[Event "Titled Tuesday Blitz June 27 Late 2023"]
[White "Papp, Levente"]
[Black "D`Arruda, Ricardo D."]
[WhiteFideId "751243"]
[BlackFideId "100692"]
[WhiteElo "2667"]
[BlackElo "2551"]
[Result "1-0"]
[Round "8"]
[TimeControl "180+2"]
[Date "2023.06.27"]
[WhiteClock "0:00:07"]
[BlackClock "0:00:34"]
[Board "50"]

1. b3 {[%clk 0:03:00]}  e5 {[%clk 0:02:56]} 2. Bb2 {[%clk 0:03:01]}  Nc6 {[%clk 0:02:56]} 3. c4 {[%clk 0:03:01]}  Nf6 {[%clk 0:02:54]} 4. Nc3 {[%clk 0:03:02]}  d6 {[%clk 0:02:52]} 5. g3 {[%clk 0:03:01]}  Be7 {[%clk 0:02:53]} 6. Bg2 {[%clk 0:03:01]}  O-O {[%clk 0:02:53]} 7. e3 {[%clk 0:03:00]}  Be6 {[%clk 0:02:52]} 8. Nge2 {[%clk 0:02:47]}  d5 {[%clk 0:02:52]} 9. cxd5 {[%clk 0:02:47]}  Nxd5 {[%clk 0:02:51]} 10. O-O {[%clk 0:02:48]}  Ndb4 {[%clk 0:02:41]} 11. d4 {[%clk 0:02:45]}  exd4 {[%clk 0:02:40]} 12. exd4 {[%clk 0:02:41]}  Bf5 {[%clk 0:02:32]} 13. Ne4 {[%clk 0:02:33]}  Re8 {[%clk 0:02:28]} 14. Nf4 {[%clk 0:02:15]}  Bf8 {[%clk 0:02:25]} 15. Nc5 {[%clk 0:02:14]}  b6 {[%clk 0:02:24]} 16. Na6 {[%clk 0:02:05]}  Be4 {[%clk 0:02:07]} 17. Bxe4 {[%clk 0:01:50]}  Rxe4 {[%clk 0:02:08]} 18. Qf3 {[%clk 0:01:39]}  f5 {[%clk 0:02:01]} 19. Nxb4 {[%clk 0:01:25]}  Nxb4 {[%clk 0:02:02]} 20. d5 {[%clk 0:01:21]}  Nxd5 {[%clk 0:01:55]} 21. Rad1 {[%clk 0:01:19]}  c6 {[%clk 0:01:55]} 22. Nxd5 {[%clk 0:01:19]}  cxd5 {[%clk 0:01:53]} 23. Qxf5 {[%clk 0:01:19]}  Re2 {[%clk 0:01:49]} 24. Rxd5 {[%clk 0:01:17]}  Qc8 {[%clk 0:01:42]} 25. Bd4 {[%clk 0:00:23]}  Qxf5 {[%clk 0:01:41]} 26. Rxf5 {[%clk 0:00:24]}  Rxa2 {[%clk 0:01:40]} 27. Rc1 {[%clk 0:00:24]}  Re8 {[%clk 0:01:28]} 28. Be3 {[%clk 0:00:19]}  Rb2 {[%clk 0:01:24]} 29. Rb5 {[%clk 0:00:17]}  Re7 {[%clk 0:01:18]} 30. Rc8 {[%clk 0:00:16]}  Rf7 {[%clk 0:01:16]} 31. Ra8 {[%clk 0:00:13]}  Rd7 {[%clk 0:01:02]} 32. Rf5 {[%clk 0:00:11]}  Rf7 {[%clk 0:01:02]} 33. Rb5 {[%clk 0:00:11]}  Ra2 {[%clk 0:00:54]} 34. h4 {[%clk 0:00:11]}  h6 {[%clk 0:00:50]} 35. Rd5 {[%clk 0:00:10]}  Kh7 {[%clk 0:00:45]} 36. h5 {[%clk 0:00:10]}  Bb4 {[%clk 0:00:43]} 37. Rdd8 {[%clk 0:00:10]}  g5 {[%clk 0:00:42]} 38. Rh8+ {[%clk 0:00:08]}  Kg7 {[%clk 0:00:42]} 39. Bd4+ {[%clk 0:00:09]}  Rf6 {[%clk 0:00:41]} 40. Bxf6+ {[%clk 0:00:09]}  Kxf6 {[%clk 0:00:41]} 41. Rxh6+ {[%clk 0:00:10]}  Kf5 {[%clk 0:00:41]} 42. Rh7 {[%clk 0:00:09]}  Bc5 {[%clk 0:00:40]} 43. Rf7+ {[%clk 0:00:08]}  Kg4 {[%clk 0:00:41]} 44. Raxa7 {[%clk 0:00:08]}  Kh3 {[%clk 0:00:34]} 45. Rxa2 {[%clk 0:00:07]} 1-0


[Site "https://www.chess.com"]

[Event "Titled Tuesday Blitz June 27 Late 2023"]
[White "Kuzmin, Roman"]
[Black "Vlassov, Nikolai"]
[WhiteFideId "44134932"]
[BlackFideId "4103360"]
[WhiteElo "2537"]
[BlackElo "2638"]
[Result "0-1"]
[Round "8"]
[TimeControl "180+2"]
[Date "2023.06.27"]
[WhiteClock "0:00:00"]
[BlackClock "0:00:09"]
[Board "53"]

1. e4 {[%clk 0:03:00]}  Nc6 {[%clk 0:02:58]} 2. Nc3 {[%clk 0:02:56]}  Nf6 {[%clk 0:02:57]} 3. d4 {[%clk 0:02:54]}  d5 {[%clk 0:02:57]} 4. e5 {[%clk 0:02:51]}  Nd7 {[%clk 0:02:56]} 5. Nxd5 {[%clk 0:02:44]}  Ndb8 {[%clk 0:02:55]} 6. Bc4 {[%clk 0:02:31]}  Be6 {[%clk 0:02:48]} 7. Ne3 {[%clk 0:02:24]}  Bxc4 {[%clk 0:02:45]} 8. Nxc4 {[%clk 0:02:24]}  Qxd4 {[%clk 0:02:45]} 9. Qxd4 {[%clk 0:02:14]}  Nxd4 {[%clk 0:02:45]} 10. Ne3 {[%clk 0:02:15]}  e6 {[%clk 0:02:32]} 11. Bd2 {[%clk 0:02:09]}  Nd7 {[%clk 0:02:26]} 12. f4 {[%clk 0:02:03]}  O-O-O {[%clk 0:02:13]} 13. O-O-O {[%clk 0:02:02]}  Bc5 {[%clk 0:02:08]} 14. b4 {[%clk 0:01:55]}  Bb6 {[%clk 0:02:05]} 15. Nc4 {[%clk 0:01:54]}  f6 {[%clk 0:01:21]} 16. c3 {[%clk 0:01:40]}  Nc6 {[%clk 0:01:11]} 17. Nf3 {[%clk 0:01:38]}  a6 {[%clk 0:01:00]} 18. Rhe1 {[%clk 0:01:29]}  Rhe8 {[%clk 0:00:59]} 19. Re2 {[%clk 0:01:09]}  Ba7 {[%clk 0:00:53]} 20. Rde1 {[%clk 0:01:02]}  b5 {[%clk 0:00:51]} 21. Nb2 {[%clk 0:00:53]}  f5 {[%clk 0:00:45]} 22. Ng5 {[%clk 0:00:48]}  Nf8 {[%clk 0:00:40]} 23. Be3 {[%clk 0:00:42]}  h6 {[%clk 0:00:37]} 24. Nf3 {[%clk 0:00:37]}  Ng6 {[%clk 0:00:29]} 25. g3 {[%clk 0:00:31]}  Nge7 {[%clk 0:00:28]} 26. Kc2 {[%clk 0:00:27]}  Nd5 {[%clk 0:00:27]} 27. Bxa7 {[%clk 0:00:24]}  Nxa7 {[%clk 0:00:26]} 28. Nd3 {[%clk 0:00:25]}  Nc6 {[%clk 0:00:18]} 29. Nc5 {[%clk 0:00:22]}  a5 {[%clk 0:00:19]} 30. a3 {[%clk 0:00:22]}  Kb8 {[%clk 0:00:19]} 31. bxa5 {[%clk 0:00:19]}  Nxa5 {[%clk 0:00:18]} 32. Rb1 {[%clk 0:00:20]}  c6 {[%clk 0:00:18]} 33. a4 {[%clk 0:00:20]}  Nc4 {[%clk 0:00:19]} 34. Rb3 {[%clk 0:00:13]}  Nde3+ {[%clk 0:00:17]} 35. Kb1 {[%clk 0:00:09]}  Rd1+ {[%clk 0:00:17]} 36. Ka2 {[%clk 0:00:09]}  Kc7 {[%clk 0:00:17]} 37. Na6+ {[%clk 0:00:08]}  Kb6 {[%clk 0:00:17]} 38. Nb4 {[%clk 0:00:05]}  bxa4 {[%clk 0:00:15]} 39. Rb1 {[%clk 0:00:06]}  Rxb1 {[%clk 0:00:14]} 40. Kxb1 {[%clk 0:00:07]}  Nd5 {[%clk 0:00:13]} 41. Na2 {[%clk 0:00:05]}  Kc5 {[%clk 0:00:13]} 42. Nd4 {[%clk 0:00:05]}  g5 {[%clk 0:00:11]} 43. Kc1 {[%clk 0:00:03]}  gxf4 {[%clk 0:00:10]} 44. gxf4 {[%clk 0:00:04]}  Nxf4 {[%clk 0:00:10]} 45. Rc2 {[%clk 0:00:00]}  Nxe5 {[%clk 0:00:09]} 0-1


[Site "https://www.chess.com"]

[Event "Titled Tuesday Blitz June 27 Late 2023"]
[White "Andrej2004"]
[Black "Martinez Reyes, Pedro Ramon"]
[BlackFideId "3901807"]
[WhiteElo "2636"]
[BlackElo "2537"]
[Result "0-1"]
[Round "8"]
[TimeControl "180+2"]
[Date "2023.06.27"]
[WhiteClock "0:00:19"]
[BlackClock "0:00:59"]
[Board "54"]

1. Nf3 {[%clk 0:03:00]}  Nf6 {[%clk 0:02:57]} 2. b3 {[%clk 0:02:59]}  b5 {[%clk 0:02:56]} 3. Bb2 {[%clk 0:02:57]}  Bb7 {[%clk 0:02:56]} 4. g3 {[%clk 0:02:58]}  Bxf3 {[%clk 0:02:55]} 5. exf3 {[%clk 0:02:59]}  e6 {[%clk 0:02:55]} 6. Bg2 {[%clk 0:02:59]}  d5 {[%clk 0:02:55]} 7. f4 {[%clk 0:02:56]}  g6 {[%clk 0:02:53]} 8. O-O {[%clk 0:02:45]}  Bg7 {[%clk 0:02:53]} 9. Nc3 {[%clk 0:02:41]}  b4 {[%clk 0:02:49]} 10. Ne2 {[%clk 0:02:34]}  Nbd7 {[%clk 0:02:49]} 11. a3 {[%clk 0:02:33]}  a5 {[%clk 0:02:49]} 12. Nd4 {[%clk 0:02:29]}  c5 {[%clk 0:02:42]} 13. Nb5 {[%clk 0:02:23]}  Qb6 {[%clk 0:02:38]} 14. a4 {[%clk 0:02:16]}  O-O {[%clk 0:02:38]} 15. d4 {[%clk 0:02:09]}  Rac8 {[%clk 0:02:35]} 16. c3 {[%clk 0:02:00]}  c4 {[%clk 0:02:23]} 17. bxc4 {[%clk 0:01:57]}  dxc4 {[%clk 0:02:23]} 18. Qd2 {[%clk 0:01:50]}  Nd5 {[%clk 0:02:22]} 19. Bxd5 {[%clk 0:01:45]}  exd5 {[%clk 0:02:22]} 20. cxb4 {[%clk 0:01:46]}  axb4 {[%clk 0:02:20]} 21. Qxb4 {[%clk 0:01:46]}  Nb8 {[%clk 0:02:08]} 22. a5 {[%clk 0:01:30]}  Qe6 {[%clk 0:02:06]} 23. Rfe1 {[%clk 0:01:29]}  Qd7 {[%clk 0:01:38]} 24. a6 {[%clk 0:01:18]}  Nc6 {[%clk 0:01:24]} 25. Qa3 {[%clk 0:01:04]}  Ra8 {[%clk 0:01:19]} 26. Bc3 {[%clk 0:01:04]}  Rfb8 {[%clk 0:01:13]} 27. Qc5 {[%clk 0:01:04]}  Bf8 {[%clk 0:01:10]} 28. a7 {[%clk 0:00:48]}  Bxc5 {[%clk 0:01:06]} 29. axb8=Q+ {[%clk 0:00:46]}  Rxb8 {[%clk 0:01:06]} 30. dxc5 {[%clk 0:00:46]}  Rxb5 {[%clk 0:01:04]} 31. Bf6 {[%clk 0:00:44]}  Rb8 {[%clk 0:01:03]} 32. Ra6 {[%clk 0:00:40]}  d4 {[%clk 0:01:01]} 33. Rb6 {[%clk 0:00:38]}  Rc8 {[%clk 0:01:00]} 34. h4 {[%clk 0:00:30]}  c3 {[%clk 0:01:00]} 35. h5 {[%clk 0:00:30]}  c2 {[%clk 0:01:00]} 36. hxg6 {[%clk 0:00:29]}  fxg6 {[%clk 0:00:58]} 37. f5 {[%clk 0:00:19]}  d3 {[%clk 0:00:58]} 38. fxg6 {[%clk 0:00:18]}  hxg6 {[%clk 0:00:59]} 39. Bc3 {[%clk 0:00:17]}  d2 {[%clk 0:00:58]} 40. Bxd2 {[%clk 0:00:17]}  Qxd2 {[%clk 0:00:58]} 41. Re6 {[%clk 0:00:18]}  c1=Q+ {[%clk 0:00:58]} 42. Kh2 {[%clk 0:00:18]}  Qxf2+ {[%clk 0:00:59]} 43. Kh3 {[%clk 0:00:18]}  Qh1+ {[%clk 0:00:59]} 44. Kg4 {[%clk 0:00:19]}  Qf5# {[%clk 0:00:59]} 0-1


[Site "https://www.chess.com"]

[Event "Titled Tuesday Blitz June 27 Late 2023"]
[White "Chor, Kevin"]
[Black "Kavutskiy, Konstantin"]
[WhiteFideId "2090740"]
[BlackFideId "2026384"]
[WhiteElo "2536"]
[BlackElo "2631"]
[Result "1-0"]
[Round "8"]
[TimeControl "180+2"]
[Date "2023.06.27"]
[WhiteClock "0:00:04"]
[BlackClock "0:00:00"]
[Board "55"]

1. e4 {[%clk 0:03:00]}  c5 {[%clk 0:02:54]} 2. Nf3 {[%clk 0:03:00]}  Nc6 {[%clk 0:02:53]} 3. d4 {[%clk 0:03:01]}  cxd4 {[%clk 0:02:54]} 4. Nxd4 {[%clk 0:03:02]}  Nf6 {[%clk 0:02:53]} 5. Nc3 {[%clk 0:03:02]}  e5 {[%clk 0:02:54]} 6. Ndb5 {[%clk 0:03:02]}  d6 {[%clk 0:02:55]} 7. Bg5 {[%clk 0:03:00]}  a6 {[%clk 0:02:55]} 8. Na3 {[%clk 0:03:00]}  b5 {[%clk 0:02:55]} 9. Nd5 {[%clk 0:03:00]}  Be7 {[%clk 0:02:56]} 10. Bxf6 {[%clk 0:03:01]}  Bxf6 {[%clk 0:02:57]} 11. c3 {[%clk 0:03:01]}  Rb8 {[%clk 0:02:56]} 12. g3 {[%clk 0:02:56]}  O-O {[%clk 0:02:54]} 13. Bg2 {[%clk 0:02:50]}  Be6 {[%clk 0:02:48]} 14. Nc2 {[%clk 0:02:31]}  Bg5 {[%clk 0:02:44]} 15. O-O {[%clk 0:02:30]}  Ne7 {[%clk 0:02:42]} 16. Ncb4 {[%clk 0:02:15]}  Nxd5 {[%clk 0:02:38]} 17. exd5 {[%clk 0:02:11]}  Bd7 {[%clk 0:02:34]} 18. Nxa6 {[%clk 0:02:04]}  Rc8 {[%clk 0:02:22]} 19. Nb4 {[%clk 0:02:04]}  Qb6 {[%clk 0:02:19]} 20. Nc6 {[%clk 0:01:59]}  f5 {[%clk 0:02:17]} 21. Kh1 {[%clk 0:01:52]}  e4 {[%clk 0:02:16]} 22. Nd4 {[%clk 0:01:42]}  Bf6 {[%clk 0:02:10]} 23. Ne6 {[%clk 0:01:29]}  Rfe8 {[%clk 0:02:10]} 24. g4 {[%clk 0:01:21]}  b4 {[%clk 0:02:00]} 25. gxf5 {[%clk 0:01:17]}  bxc3 {[%clk 0:01:59]} 26. bxc3 {[%clk 0:01:18]}  Bxc3 {[%clk 0:01:52]} 27. Rb1 {[%clk 0:01:17]}  Qa5 {[%clk 0:01:47]} 28. Bxe4 {[%clk 0:01:14]}  Qxa2 {[%clk 0:01:43]} 29. Qh5 {[%clk 0:01:09]}  Bf6 {[%clk 0:01:40]} 30. Rb7 {[%clk 0:01:08]}  Qa4 {[%clk 0:01:35]} 31. Bf3 {[%clk 0:00:54]}  Rc2 {[%clk 0:01:26]} 32. Bd1 {[%clk 0:00:42]}  Qa6 {[%clk 0:01:24]} 33. Rg1 {[%clk 0:00:29]}  Qxb7 {[%clk 0:01:19]} 34. Bxc2 {[%clk 0:00:29]}  Qxd5+ {[%clk 0:01:18]} 35. f3 {[%clk 0:00:26]}  Bc6 {[%clk 0:01:15]} 36. Be4 {[%clk 0:00:20]}  Qxe4 {[%clk 0:00:58]} 37. fxe4 {[%clk 0:00:19]}  Bxe4+ {[%clk 0:00:58]} 38. Rg2 {[%clk 0:00:20]}  Ra8 {[%clk 0:00:58]} 39. h4 {[%clk 0:00:12]}  Be5 {[%clk 0:00:40]} 40. Kg1 {[%clk 0:00:03]}  g6 {[%clk 0:00:25]} 41. Rxg6+ {[%clk 0:00:00]}  hxg6 {[%clk 0:00:24]} 42. Qxg6+ {[%clk 0:00:01]}  Kh8 {[%clk 0:00:23]} 43. Qh6+ {[%clk 0:00:02]}  Kg8 {[%clk 0:00:24]} 44. Qg6+ {[%clk 0:00:02]}  Kh8 {[%clk 0:00:24]} 45. Qh6+ {[%clk 0:00:03]}  Kg8 {[%clk 0:00:25]} 46. f6 {[%clk 0:00:04]}  Ra1+ {[%clk 0:00:14]} 47. Kf2 {[%clk 0:00:04]}  Ra2+ {[%clk 0:00:04]} 48. Ke3 {[%clk 0:00:04]}  Rg2 {[%clk 0:00:05]} 49. Qf8+ {[%clk 0:00:03]}  Kh7 {[%clk 0:00:05]} 50. Qf7+ {[%clk 0:00:04]}  Kh6 {[%clk 0:00:05]} 51. Kxe4 {[%clk 0:00:04]}  d5+ {[%clk 0:00:05]} 52. Kxe5 {[%clk 0:00:04]}  d4 {[%clk 0:00:05]} 53. Kxd4 {[%clk 0:00:05]}  Rd2+ {[%clk 0:00:05]} 54. Ke3 {[%clk 0:00:05]}  Re2+ {[%clk 0:00:05]} 55. Kd4 {[%clk 0:00:03]}  Re4+ {[%clk 0:00:05]} 56. Kd5 {[%clk 0:00:04]}  Re5+ {[%clk 0:00:06]} 57. Kd6 {[%clk 0:00:04]}  Rd5+ {[%clk 0:00:06]} 58. Ke7 {[%clk 0:00:04]}  Rd7+ {[%clk 0:00:07]} 59. Kf8 {[%clk 0:00:05]}  Rd8+ {[%clk 0:00:06]} 60. Qe8 {[%clk 0:00:05]}  Rd7 {[%clk 0:00:00]} 61. Qxd7 {[%clk 0:00:04]} 1-0


[Site "https://www.chess.com"]

[Event "Titled Tuesday Blitz June 27 Late 2023"]
[White "Grinev, Valeriy"]
[Black "Mattheii"]
[WhiteFideId "14117517"]
[WhiteElo "2610"]
[BlackElo "2510"]
[Result "1-0"]
[Round "8"]
[TimeControl "180+2"]
[Date "2023.06.27"]
[WhiteClock "0:01:26"]
[BlackClock "0:00:02"]
[Board "59"]

1. e4 {[%clk 0:02:55]}  c5 {[%clk 0:02:59]} 2. Nc3 {[%clk 0:02:55]}  Nc6 {[%clk 0:02:59]} 3. d3 {[%clk 0:02:54]}  g6 {[%clk 0:02:59]} 4. Be3 {[%clk 0:02:55]}  d6 {[%clk 0:02:58]} 5. d4 {[%clk 0:02:54]}  cxd4 {[%clk 0:02:22]} 6. Bxd4 {[%clk 0:02:55]}  e5 {[%clk 0:02:12]} 7. Be3 {[%clk 0:02:52]}  Be6 {[%clk 0:02:07]} 8. Qd2 {[%clk 0:02:52]}  f5 {[%clk 0:02:00]} 9. f3 {[%clk 0:02:50]}  fxe4 {[%clk 0:01:57]} 10. fxe4 {[%clk 0:02:48]}  Nf6 {[%clk 0:01:55]} 11. O-O-O {[%clk 0:02:47]}  Ng4 {[%clk 0:01:50]} 12. Bg5 {[%clk 0:02:46]}  Be7 {[%clk 0:01:39]} 13. h4 {[%clk 0:02:42]}  O-O {[%clk 0:01:32]} 14. Nf3 {[%clk 0:02:40]}  Rc8 {[%clk 0:01:22]} 15. Kb1 {[%clk 0:02:39]}  a6 {[%clk 0:01:21]} 16. Nd5 {[%clk 0:02:37]}  Bxg5 {[%clk 0:01:20]} 17. Nxg5 {[%clk 0:02:23]}  Nd4 {[%clk 0:01:01]} 18. c3 {[%clk 0:02:06]}  Bxd5 {[%clk 0:00:58]} 19. exd5 {[%clk 0:02:02]}  Rf2 {[%clk 0:00:41]} 20. Qc1 {[%clk 0:01:56]}  Qb6 {[%clk 0:00:35]} 21. Bd3 {[%clk 0:01:48]}  Rxg2 {[%clk 0:00:21]} 22. Nxh7 {[%clk 0:01:44]}  Kxh7 {[%clk 0:00:04]} 23. h5 {[%clk 0:01:44]}  Kg7 {[%clk 0:00:05]} 24. hxg6 {[%clk 0:01:44]}  Rh8 {[%clk 0:00:04]} 25. Rxh8 {[%clk 0:01:43]}  Kxh8 {[%clk 0:00:04]} 26. Rh1+ {[%clk 0:01:42]}  Kg8 {[%clk 0:00:05]} 27. cxd4 {[%clk 0:01:39]}  Qxd4 {[%clk 0:00:03]} 28. Qc8+ {[%clk 0:01:38]}  Kg7 {[%clk 0:00:03]} 29. Qd7+ {[%clk 0:01:37]}  Kf6 {[%clk 0:00:02]} 30. Qd8+ {[%clk 0:01:28]}  Kg7 {[%clk 0:00:02]} 31. Rh7# {[%clk 0:01:26]} 1-0


[Site "https://www.chess.com"]

[Event "Titled Tuesday Blitz June 27 Late 2023"]
[White "Nunez V, Gustavo Eduardo"]
[Black "MKlose11"]
[WhiteFideId "4403690"]
[WhiteElo "2447"]
[BlackElo "2597"]
[Result "1-0"]
[Round "8"]
[TimeControl "180+2"]
[Date "2023.06.27"]
[WhiteClock "0:00:29"]
[BlackClock "0:00:00"]
[Board "62"]

1. e4 {[%clk 0:03:00]}  e6 {[%clk 0:02:56]} 2. d3 {[%clk 0:03:00]}  c5 {[%clk 0:02:53]} 3. Nd2 {[%clk 0:03:01]}  Nc6 {[%clk 0:02:53]} 4. g3 {[%clk 0:03:01]}  g6 {[%clk 0:02:54]} 5. Bg2 {[%clk 0:03:01]}  Bg7 {[%clk 0:02:54]} 6. Ne2 {[%clk 0:03:00]}  Nge7 {[%clk 0:02:55]} 7. O-O {[%clk 0:03:00]}  O-O {[%clk 0:02:55]} 8. Nc3 {[%clk 0:03:00]}  Rb8 {[%clk 0:02:54]} 9. a4 {[%clk 0:02:58]}  a6 {[%clk 0:02:54]} 10. f4 {[%clk 0:02:59]}  b5 {[%clk 0:02:54]} 11. axb5 {[%clk 0:03:00]}  axb5 {[%clk 0:02:54]} 12. Nf3 {[%clk 0:03:00]}  Nd4 {[%clk 0:02:52]} 13. e5 {[%clk 0:03:00]}  d5 {[%clk 0:02:28]} 14. Nxd4 {[%clk 0:02:48]}  cxd4 {[%clk 0:02:28]} 15. Ne2 {[%clk 0:02:49]}  Qb6 {[%clk 0:02:25]} 16. Bd2 {[%clk 0:02:40]}  Bd7 {[%clk 0:02:23]} 17. Bb4 {[%clk 0:02:34]}  Rfe8 {[%clk 0:02:22]} 18. Bd6 {[%clk 0:02:25]}  Rbc8 {[%clk 0:02:18]} 19. g4 {[%clk 0:02:24]}  Rc6 {[%clk 0:02:07]} 20. Nc1 {[%clk 0:02:23]}  Rxd6 {[%clk 0:02:04]} 21. exd6 {[%clk 0:02:24]}  Qxd6 {[%clk 0:02:05]} 22. Nb3 {[%clk 0:02:25]}  Rc8 {[%clk 0:01:59]} 23. Kh1 {[%clk 0:02:15]}  h6 {[%clk 0:01:45]} 24. Rf2 {[%clk 0:02:07]}  Kh7 {[%clk 0:01:29]} 25. Qd2 {[%clk 0:02:01]}  Bf6 {[%clk 0:01:11]} 26. Raf1 {[%clk 0:01:53]}  h5 {[%clk 0:01:04]} 27. h3 {[%clk 0:01:46]}  hxg4 {[%clk 0:00:53]} 28. hxg4 {[%clk 0:01:47]}  Kg8 {[%clk 0:00:53]} 29. Bh3 {[%clk 0:01:37]}  b4 {[%clk 0:00:52]} 30. g5 {[%clk 0:01:37]}  Bg7 {[%clk 0:00:51]} 31. Bg4 {[%clk 0:01:32]}  Ba4 {[%clk 0:00:51]} 32. Kg2 {[%clk 0:01:19]}  Qc7 {[%clk 0:00:47]} 33. Qxb4 {[%clk 0:01:11]}  Bxb3 {[%clk 0:00:43]} 34. Qxb3 {[%clk 0:01:11]}  Rb8 {[%clk 0:00:44]} 35. Qa3 {[%clk 0:01:09]}  Bf8 {[%clk 0:00:44]} 36. Qa1 {[%clk 0:01:01]}  Nc6 {[%clk 0:00:24]} 37. b3 {[%clk 0:00:59]}  Bd6 {[%clk 0:00:23]} 38. Rh1 {[%clk 0:00:53]}  Bxf4 {[%clk 0:00:19]} 39. Qf1 {[%clk 0:00:42]}  Bxg5 {[%clk 0:00:10]} 40. Rxf7 {[%clk 0:00:40]}  Qxf7 {[%clk 0:00:09]} 41. Rh8+ {[%clk 0:00:40]}  Kxh8 {[%clk 0:00:08]} 42. Qxf7 {[%clk 0:00:39]}  Ne5 {[%clk 0:00:08]} 43. Qxe6 {[%clk 0:00:37]}  Nxg4 {[%clk 0:00:08]} 44. Qxg4 {[%clk 0:00:38]}  Bf6 {[%clk 0:00:08]} 45. Qxg6 {[%clk 0:00:38]}  Bg7 {[%clk 0:00:07]} 46. Qh5+ {[%clk 0:00:38]}  Kg8 {[%clk 0:00:07]} 47. Qxd5+ {[%clk 0:00:39]}  Kh7 {[%clk 0:00:07]} 48. Qe4+ {[%clk 0:00:39]}  Kg8 {[%clk 0:00:07]} 49. Qe6+ {[%clk 0:00:39]}  Kh8 {[%clk 0:00:07]} 50. Qd6 {[%clk 0:00:38]}  Rf8 {[%clk 0:00:07]} 51. b4 {[%clk 0:00:35]}  Rf6 {[%clk 0:00:07]} 52. Qd8+ {[%clk 0:00:32]}  Kh7 {[%clk 0:00:07]} 53. b5 {[%clk 0:00:31]}  Rg6+ {[%clk 0:00:07]} 54. Kf3 {[%clk 0:00:31]}  Rf6+ {[%clk 0:00:07]} 55. Ke4 {[%clk 0:00:31]}  Re6+ {[%clk 0:00:06]} 56. Kd5 {[%clk 0:00:31]}  Re2 {[%clk 0:00:06]} 57. Qc8 {[%clk 0:00:30]}  Re5+ {[%clk 0:00:03]} 58. Kc4 {[%clk 0:00:30]}  Re2 {[%clk 0:00:00]} 59. Qf5+ {[%clk 0:00:29]} 1-0


[Site "https://www.chess.com"]

[Event "Titled Tuesday Blitz June 27 Late 2023"]
[White "Matinian, Nikita"]
[Black "Guzman Moneo, Alberto"]
[WhiteFideId "24129100"]
[BlackFideId "2209616"]
[WhiteElo "2715"]
[BlackElo "2401"]
[Result "1-0"]
[Round "8"]
[TimeControl "180+2"]
[Date "2023.06.27"]
[WhiteClock "0:02:08"]
[BlackClock "0:00:49"]
[Board "66"]

1. e4 {[%clk 0:02:44]}  e6 {[%clk 0:02:59]} 2. d4 {[%clk 0:02:43]}  d5 {[%clk 0:02:59]} 3. Nc3 {[%clk 0:02:43]}  Bb4 {[%clk 0:02:59]} 4. e5 {[%clk 0:02:43]}  c5 {[%clk 0:02:59]} 5. a3 {[%clk 0:02:44]}  Ba5 {[%clk 0:02:59]} 6. b4 {[%clk 0:02:43]}  cxd4 {[%clk 0:02:59]} 7. Nb5 {[%clk 0:02:43]}  Bc7 {[%clk 0:02:57]} 8. f4 {[%clk 0:02:41]}  Nc6 {[%clk 0:02:55]} 9. Nf3 {[%clk 0:02:41]}  Nge7 {[%clk 0:02:54]} 10. Bd3 {[%clk 0:02:40]}  a6 {[%clk 0:02:54]} 11. Nxc7+ {[%clk 0:02:37]}  Qxc7 {[%clk 0:02:55]} 12. Bb2 {[%clk 0:02:37]}  Nf5 {[%clk 0:02:49]} 13. Bxf5 {[%clk 0:02:35]}  exf5 {[%clk 0:02:50]} 14. Nxd4 {[%clk 0:02:35]}  O-O {[%clk 0:02:46]} 15. O-O {[%clk 0:02:35]}  Be6 {[%clk 0:02:43]} 16. Rf3 {[%clk 0:02:33]}  Rac8 {[%clk 0:02:41]} 17. Rc1 {[%clk 0:02:29]}  Nxd4 {[%clk 0:02:23]} 18. Bxd4 {[%clk 0:02:29]}  Qc4 {[%clk 0:02:24]} 19. c3 {[%clk 0:02:29]}  a5 {[%clk 0:02:19]} 20. Rg3 {[%clk 0:02:29]}  axb4 {[%clk 0:02:16]} 21. axb4 {[%clk 0:02:30]}  Ra8 {[%clk 0:02:07]} 22. h3 {[%clk 0:02:30]}  Ra2 {[%clk 0:02:04]} 23. Kh2 {[%clk 0:02:27]}  Rfa8 {[%clk 0:02:00]} 24. Qh5 {[%clk 0:02:26]}  Qe2 {[%clk 0:01:54]} 25. Qg5 {[%clk 0:02:21]}  g6 {[%clk 0:01:54]} 26. b5 {[%clk 0:02:16]}  Rc2 {[%clk 0:01:37]} 27. Rxc2 {[%clk 0:02:12]}  Qxc2 {[%clk 0:01:37]} 28. h4 {[%clk 0:02:12]}  Kf8 {[%clk 0:01:10]} 29. h5 {[%clk 0:02:11]}  Ke8 {[%clk 0:01:05]} 30. Bc5 {[%clk 0:02:10]}  Kd7 {[%clk 0:01:01]} 31. Qe7+ {[%clk 0:02:10]}  Kc8 {[%clk 0:01:01]} 32. Bd6 {[%clk 0:02:10]}  Qxc3 {[%clk 0:00:49]} 33. Qe8# {[%clk 0:02:08]} 1-0


[Site "https://www.chess.com"]

[Event "Titled Tuesday Blitz June 27 Late 2023"]
[White "Baches Garcia, Guillermo"]
[Black "Pakleza, Zbigniew"]
[WhiteFideId "2209764"]
[BlackFideId "1119290"]
[WhiteElo "2469"]
[BlackElo "2707"]
[Result "0-1"]
[Round "8"]
[TimeControl "180+2"]
[Date "2023.06.27"]
[WhiteClock "0:01:29"]
[BlackClock "0:01:37"]
[Board "67"]

1. e4 {[%clk 0:02:57]}  d6 {[%clk 0:03:00]} 2. d4 {[%clk 0:02:57]}  Nf6 {[%clk 0:03:01]} 3. f3 {[%clk 0:02:57]}  Nbd7 {[%clk 0:03:00]} 4. Be3 {[%clk 0:02:56]}  e5 {[%clk 0:03:01]} 5. Ne2 {[%clk 0:02:55]}  Be7 {[%clk 0:03:01]} 6. Qd2 {[%clk 0:02:54]}  O-O {[%clk 0:03:01]} 7. Nbc3 {[%clk 0:02:53]}  c6 {[%clk 0:03:00]} 8. O-O-O {[%clk 0:02:53]}  b5 {[%clk 0:02:58]} 9. g4 {[%clk 0:02:53]}  b4 {[%clk 0:02:58]} 10. Nb1 {[%clk 0:02:52]}  a5 {[%clk 0:02:58]} 11. h4 {[%clk 0:02:50]}  d5 {[%clk 0:02:15]} 12. g5 {[%clk 0:02:27]}  Nh5 {[%clk 0:02:16]} 13. exd5 {[%clk 0:02:27]}  cxd5 {[%clk 0:02:16]} 14. Bh3 {[%clk 0:02:23]}  Nb6 {[%clk 0:02:06]} 15. Bg4 {[%clk 0:02:14]}  Nc4 {[%clk 0:02:05]} 16. Qd3 {[%clk 0:02:14]}  Bxg4 {[%clk 0:01:46]} 17. fxg4 {[%clk 0:02:13]}  e4 {[%clk 0:01:45]} 18. gxh5 {[%clk 0:01:33]}  exd3 {[%clk 0:01:39]} 19. Rxd3 {[%clk 0:01:29]}  Nxe3 {[%clk 0:01:37]} 0-1


[Site "https://www.chess.com"]